Workbook

Sheet Start
AD1: 0 | AE1: Start
H2: Modul 02 : Unternehmensgründung | AD2: =AD1+1 -> 1 | AE2: 01_Einführung
AD3: =AD2+1 -> 2 | AE3: 02_Formeln
M4: Zu dieser Datei: | AD4: 3 | AE4: 03_Ratentilgung1_A
AD5: 4 | AE5: 04_Annuitätentilgung1_A
M6: Dies Datei enthält
N8: Aussagen über die Grundlagen der Tilgungsrechnung bei Krediten,
N10: alle wichtigen Formeln zu den Tilgungsformen
P11: - Ratentilgung und
P12: - Annuitätentilgung sowie
N14: jeweils ein Fallbeispiel zur Übung (mit Musterlösung).
F20: Tabellen-Auswahl
F21: 0

Sheet 01_Einführung
C4: Tilgung von Darlehen
C6: 1. EINFÜHRUNG
C7: Bei der Entscheidung über die Aufnahme eines Darlehens (= langfristiger Kredit) ist nicht nur zu ermitteln, welche
C8: Höhe des Darlehens beantragt werden soll und zu welchen Zins- und Sicherheitsbedingungen das Darlehen gewährt
C9: werden kann, ganz entscheidend ist vielmehr, dass vor Vertragsunterzeichnung ein Tilgungsplan erstellt wird, aus
C10: dem klar hervorgeht, wie die Anfangsschuld schrittweise durch Tilgung abgetragen wird, wie hoch der Schulden-
C11: stand am Ende eines Jahres ist und welche Zinsen im laufenden Jahr anfallen.
C12: Dieser Tilgungsplan ist sodann auf monatliche Rückzahlungen (Tilgung + Zinsen) als Abbuchungen vom Geschäftskonto
C13: und damit als zu benennende Größe des monatlichen Liquiditätsabflusses aufzuschlüsseln.
C14: Die konkrete Gestalt des Tilgungsplanes hängt davon ab, nach welchem Verfahren die Tilgung vorgenommen werden
C15: soll und ob ein Disagio in Anspruch genommen wird, ob es tilgungsfreie Jahre gibt u. a. m.
C16: Das Erstellen eines Tilgungsplanes ist Aufgabe der Tilgungsrechnung.
C17: Aufgabe und Zielsetzung der Tilgungsrechnung ist es, die auf finanzmathematischen Berechnungen und Zusammen-
C18: hängen beruhende Rückzahlung von Darlehen, Hypotheken und dgl. als Zahlungsstrom zu bestimmen und in Form
C19: eines Tilgungsplanes zu dokumentieren.
C20: Grundlegende Verfahren und Vorgehensweisen der Tilgungsrechnung sind
D21: a) die Ratentilgung und
D22: b) die Annuitätentilgung.
C23: Eine Sonderheit bilden sog. Endfälligkeitsdarlehen: Derartige Darlehen sind zum Ende der vereinbarten Laufzeit in der
C24: Höhe des Gesamtbetrages komplett zu tilgen. Während der Laufzeit zahlt der Darlehensnehmer nur die vereinbarten
C25: Zinsen.
C26: In die finanzmathematisch begründete Tilgungsrechnung werden folgende Größen einbezogen:
C28: Nr. | D28: Symbol | E28: Erläuterung
C29: 1 | D29: K0 | E29: Gesamt- bzw. Anfangsschuld [EUR] = nominaler Darlehensbetrag
C30: =C29+1 -> 2 | D30: i | E30: Zinssatz [% p. a.]
C31: =C30+1 -> 3 | D31: q | E31: Hilfsgröße mit q = 1 + i [-/a]
C32: 4 | D32: n | E32: Laufzeit des Darlehens [a]
C33: 5 | D33: Rk | E33: Restschuld [EUR] nach k Tilgungsjahren (k= 0, 1, 2, ..., n)
C34: 6 | D34: Qk | E34: Tilgungsrate [EUR/a] im k-ten Jahr (= Betrag des Abtragens der Schuld)
C35: 7 | D35: Zk | E35: Zinsen [EUR/a] im k-ten Jahr, berechnet auf die Restschuld Rk-1, die für das k-te Jahr nachschüssig zu zahlen sind
C36: 8 | D36: Ak | E36: Jährliche Zahlung [EUR/a] im k-ten Jahr

Sheet 02_Formeln
C4: Tilgung von Darlehen
C6: 2. Berechnungsformeln
C8: 2.1 Ratentilgung
C9: Bei einer Ratentilgung wird das Darlehen in jährlich gleichen Raten getilgt. Damit sind die Tilgungsraten Q konstant:
L11: (1)
C13: Die Restschuld Rk nach dem k-ten Tilgungsjahr ermittelt sich wie folgt:
L15: (2) | M15: (für k = 0, 1, 2, …, n)
C17: Die im k-ten Jahr zu bezahlenden Zinsen Zk beziehen sich auf die Restschuld Rk-1 (= Ende Vorjahr). Somit gilt:
N19: (3) | O19: (für k = 1, 2, …, n)
C21: Der jährliche Kapitaldienst (Tilgung + Zinsen) wird als Annuität A bezeichnet. Da im Fall der Ratenzahlung die Zins-
C22: zahlungen von Jahr zu Jahr geringer werden, sinkt auch der Betrag der Annuität Ak:
L24: (4) | M24: (für k = 1, 2, …, n)
C26: 2.2 Annuitätentilgung
C28: Das kennzeichnende Merkmal der Annuitätentilgung besteht darin, dass die jährliche Zahlung (= Annuität A), bestehend
C29: aus der Tilgungsrate Qk und den Zinsen Zk, über der Laufzeit des Darlehens gleichbleibt:
L31: (5) | M31: (für k = 1, 2, …, n)
C33: Die finanzmathematische Formel für die Ermittung der Annuität A lautet:
M35: (6) | N35: mit q = 1 + i [-/a]
C37: Die Restschuld Rk nach k Tilgungsjahren ist wie folgt zu ermitteln:
M39: (7)
C41: Für die Ermittlung der Tilgungsrate Qk des k-ten Jahres ist folgende Formel zu verwenden:
O43: (8)
C45: Die fälligen Zinsen Zk [EUR/a] und die Tilgungsrate Qk [EUR/a] können auch wie folgt bestimmt werden:
G47: (9) | H47: und | N47: 10)
C49: Die Anwendung dieser Formeln kann nun an Fallbeispielen geübt werden.

Sheet 03_Ratentilgung1_A
C4: Tilgung von Darlehen
C6: 3. Fallbeispiel zur Ratentilgung
C8: 3.1 Daten zum Darlehen
C9: Der Unternehmer Max Muster hat zur Absicherung der Deckung des Kapitalbedarfs ein Bank-Darlehen in Höhe
C10: von K0 = | D10: =180000+E10 -> 186000 | E10: 6000 | F10: [EUR] mit folgenden Konditionen aufgenommen:
C11: Laufzeit des Darlehens: n = | E11: 6 | F11: Jahre und | G11: fester Zinssatz [% p. a.] mit i = | I11: =J11/10 -> 5 | J11: 50
C12: Die Tilgung soll innnerhalb der vereinbarten Laufzeit in gleichen Raten erfolgen.
C14: 3.2 Tilgungsplan
C16: Aufgabe: Erstellen Sie unter Anwendung der Formeln für die Ratentilgung mit Bezugnahme auf die obigen Daten den Tilgungsplan!
C17: Tilgungsplan:
C18: Jahr | D18: Restschuld [EUR] (Anfang) | E18: Tilgungsrate [EUR/a] | F18: Zinsen [EUR/a] | G18: Annuität [EUR/a] | H18: Restschuld [EUR] Ende
C19: 1
C20: =C19+1 -> 2
C21: =C20+1 -> 3
C22: 4
C23: 5
C24: 6
C25: 7
C26: 8
C27: 9
C28: 10
C30: 3.3 Grafik
C31: Erarbeiten zum Tilgungsplan eine Grafik (mit Tilgungsrate und Zinsen)!

Sheet 03_Ratentilgung1_L (hidden)
C4: Tilgung von Darlehen
C6: 3. Fallbeispiel zur Ratentilgung
C8: 3.1 Daten zum Darlehen
C9: Der Unternehmer Max Muster hat zur Absicherung der Deckung des Kapitalbedarfs ein Bank-Darlehen in Höhe
C10: von K0 = | D10: =180000+E10 -> 186000 | E10: 6000 | F10: [EUR] mit folgenden Konditionen aufgenommen:
C11: Laufzeit des Darlehens: n = | E11: 6 | F11: Jahre und | G11: fester Zinssatz [% p. a.] mit i = | I11: =J11/10 -> 5 | J11: 50
C12: Die Tilgung soll innerhalb der vereinbarten Laufzeit in gleichen Raten erfolgen.
C14: 3.2 Tilgungsplan
C16: Die Anwendung der Formeln für die Ratentilgung führt mit Bezugnahme auf die obigen Daten zu folgendem
C17: Tilgungsplan:
C18: Jahr | D18: Restschuld [EUR] (Anfang) | E18: Tilgungsrate [EUR/a] | F18: Zinsen [EUR/a] | G18: Annuität [EUR/a] | H18: Restschuld [EUR] Ende | J18: Kommentar:
C19: 1 | D19: =K0 -> 186000 | E19: =K0/n -> 31000 | F19: =K0*i/100 -> 9300 | G19: =E19+F19 -> 40300 | H19: =D19-E19 -> 155000 | J19: Klicken Sie ab Jahr 2 die Zellen
C20: =C19+1 -> 2 | D20: =IF(C20<=n,H19,"") -> 155000 | E20: =IF(C20<=n,K0/n,"") -> 31000 | F20: =IF(C20<=n,D20*i/100,"") -> 7750 | G20: =IF(C20<=n,E20+F20,"") -> 38750 | H20: =IF(C20<=n,D20-E20,"") -> 124000 | J20: in der Tabelle an, um die Formeln
C21: =C20+1 -> 3 | D21: 124000 | E21: 31000 | F21: 6200 | G21: 37200 | H21: 93000 | J21: in der Editierzeile zu sehen.
C22: 4 | D22: 93000 | E22: 31000 | F22: 4650 | G22: 35650 | H22: 62000 | J22: Auf die angezeigte Weise ist es
C23: 5 | D23: 62000 | E23: 31000 | F23: 3100 | G23: 34100 | H23: 31000 | J23: möglich, die Auswirkungen von
C24: 6 | D24: 31000 | E24: 31000 | F24: 1550 | G24: 32550 | H24: 0 | J24: Änderungen der Werte der drei
C25: 7 | J25: Steuergrößen ('Drehfelder') auf
C26: 8 | F26: =IF(C26<=n,D26*i/100,"") ->  | J26: den Tilgungsplan zu erkennen.
C27: 9 | J27: Dies wäre bei Kreditverhandlungen
C28: 10 | J28: sehr nützlich!
C30: 3.3 Grafik

Sheet 04_Annuitätentilgung1_A
C4: Tilgung von Darlehen
C6: 4. Fallbeispiel zur Annuitätentilgung
C8: 4.1 Daten zum Darlehen
C9: Der Unternehmer Max Muster hat zur Absicherung der Deckung des Kapitalbedarfs ein Bank-Darlehen in Höhe
C10: von K0 = | D10: =180000+E10 -> 186000 | E10: 6000 | F10: [EUR] mit folgenden Konditionen aufgenommen:
C11: Laufzeit des Darlehens: n = | E11: 6 | F11: Jahre und | G11: fester Zinssatz [% p. a.] mit i = | I11: =J11/10 -> 5 | J11: 50 | K11: q = | L11: =1+i/100 -> 1.05
C12: Es wird die Form der Annuitätentilgung vereinbart, da der Unternehmer einen gleichbleibenden Kapitaldienst bevorzugt.
C14: 4.2 Tilgungsplan
C16: Die Anwendung der Formeln für die Annuitätentilgung führt mit Bezugnahme auf die obigen Daten zu folgenden Ergebnissen:
C17: Annuität A = | E17: [EUR] | F17: Tilgung Q1 = | H17: [EUR/a] | I17: Zinsen Z1 = | K17: [EUR/a]
C18: Tilgungsplan:
C19: Jahr | D19: Restschuld [EUR] (Anfang) | E19: Annuität [EUR/a] | F19: Zinsen [EUR/a] | G19: Tilgungsrate [EUR/a] | H19: Restschuld [EUR] Ende
C20: 1
C21: =C20+1 -> 2
C22: =C21+1 -> 3
C23: 4
C24: 5
C25: 6
C26: 7
C27: 8
C28: 9
C29: 10
C31: 4.3 Grafik
C32: Erarbeiten zum Tilgungsplan eine Grafik (mit Tilgungsrate und Zinsen)!

Sheet 04_Annuitätentilgung1_L (hidden)
C4: Tilgung von Darlehen
C6: 4. Fallbeispiel zur Annuitätentilgung
C8: 4.1 Daten zum Darlehen
C9: Der Unternehmer Max Muster hat zur Absicherung der Deckung des Kapitalbedarfs ein Bank-Darlehen in Höhe
C10: von K0 = | D10: =180000+E10 -> 186000 | E10: 6000 | F10: [EUR] mit folgenden Konditionen aufgenommen:
C11: Laufzeit des Darlehens: n = | E11: 6 | F11: Jahre und | G11: fester Zinssatz [% p. a.] mit i = | I11: =J11/10 -> 5 | J11: 50 | K11: q = | L11: =1+i/100 -> 1.05
C12: Es wird die Form der Annuitätentilgung vereinbart, da der Unternehmer einen gleichbleibenden Kapitaldienst bevorzugt.
C14: 4.2 Tilgungsplan
C16: Die Anwendung der Formeln für die Annuitätentilgung führt mit Bezugnahme auf die obigen Daten zu folgenden Ergebnissen:
C17: Annuität A = | D17: =K0*(q^n)*(q-1)/(q^n-1) -> 36645.24907 | E17: [EUR] | F17: Tilgung Q1 = | G17: =A-K0*i/100 -> 27345.24907 | H17: [EUR/a] | I17: Zinsen Z1 = | J17: =K0*i/100 -> 9300 | K17: [EUR/a]
C18: Tilgungsplan:
C19: Jahr | D19: Restschuld [EUR] (Anfang) | E19: Annuität [EUR/a] | F19: Zinsen [EUR/a] | G19: Tilgungsrate [EUR/a] | H19: Restschuld [EUR] Ende | I19: Kommentar:
C20: 1 | D20: =K0 -> 186000 | E20: =A -> 36645.24907 | F20: =Z_1 -> 9300 | G20: =Q_1 -> 27345.24907 | H20: =D20-G20 -> 158654.7509 | I20: Klicken Sie ab Jahr 2 die Zellen
C21: =C20+1 -> 2 | D21: =IF(C21<=n,H20,"") -> 158654.7509 | E21: =IF(C21<=n,A,"") -> 36645.24907 | F21: =IF(C21<=n,D21*i/100,"") -> 7932.737547 | G21: =IF(C21<=n,E21-F21,"") -> 28712.51152 | H21: =IF(C21<=n,D21-G21,"") -> 129942.2394 | I21: in der Tabelle an, um die Formeln
C22: =C21+1 -> 3 | D22: 129942.2394 | E22: 36645.24907 | F22: 6497.11197 | G22: 30148.1371 | H22: 99794.10231 | I22: in der Editierzeile zu sehen.
C23: 4 | D23: 99794.10231 | E23: 36645.24907 | F23: 4989.705116 | G23: 31655.54395 | H23: 68138.55836 | I23: Auf die angezeigte Weise ist es
C24: 5 | D24: 68138.55836 | E24: 36645.24907 | F24: 3406.927918 | G24: 33238.32115 | H24: 34900.23721 | I24: möglich, die Auswirkungen von
C25: 6 | D25: 34900.23721 | E25: 36645.24907 | F25: 1745.01186 | G25: 34900.23721 | H25: -2.546585165e-10 | I25: Änderungen der Werte der drei
C26: 7 | I26: Steuergrößen ('Drehfelder') auf
C27: 8 | I27: den Tilgungsplan zu erkennen.
C28: 9 | I28: Dies wäre bei Kreditverhandlungen
C29: 10 | I29: sehr nützlich!
C31: 4.3 Grafik

Sheet Blanko1 (hidden)
